fUST/lending_fUST_20241223
["ID","MTS","AMOUNT","RATE_DAILY","PERIOD"]
[346332461,1734897049045,-151.0,0.000142,2]
[346332462,1734897049054,-150.11,0.000142,2]
[346332463,1734897049064,-254.25733163,0.000142,2]
[346332464,1734897049074,-150.11,0.000142,2]
[346332465,1734897049084,-500.0,0.000142,2]
[346332466,1734897049093,-500.0,0.000142,2]
[346332467,1734897049104,-150.11,0.000142,2]
[346332468,1734897049114,-702717.88258902,0.00014246,2]
[346332472,1734898026150,-2198.79234832,0.00012488,2]
[346332473,1734898026172,-5678.2168603,0.00012741,2]
[346332474,1734898026193,-188.00382605,0.0001344,2]
[346332475,1734898026214,-300.0,0.00013696,2]
[346332476,1734898026236,-300.0,0.00013696,2]
[346332477,1734898026262,-500.0,0.00013697,2]
[346332478,1734898026284,-500.0,0.00013697,2]
[346332479,1734898026307,-500.0,0.00013697,2]
[346332480,1734898026328,-274.64302687,0.00013697,2]
[346332481,1734898026349,-500.0,0.00013697,2]
[346332482,1734898026371,-414.7628653,0.00013697,2]
[346332483,1734898026392,-500.0,0.00013698,2]
[346332484,1734898026413,-517.5764948,0.00013698,2]
[346332485,1734898026435,-737.57,0.00013698,2]
[346332486,1734898026456,-500.0,0.00013698,2]
[346332487,1734898026478,-500.0,0.00013698,2]
[346332488,1734898026499,-362.24331515,0.00013698,2]
[346332489,1734898026523,-391.94378881,0.00013698,2]
[346332490,1734898026544,-500.0,0.00013698,2]
[346332491,1734898026565,-500.0,0.00013698,2]
[346332492,1734898026587,-438.46885427,0.00013698,2]
[346332493,1734898026608,-500.0,0.00013698,2]
[346332494,1734898026628,-500.0,0.00013698,2]
[346332495,1734898026648,-500.0,0.00013698,2]
[346332496,1734898026669,-500.0,0.00013698,2]
[346332497,1734898026690,-500.0,0.00013698,2]
[346332498,1734898026710,-500.0,0.00013698,2]
[346332499,1734898026730,-500.0,0.00013698,2]
[346332500,1734898026751,-500.0,0.00013698,2]
[346332501,1734898026773,-500.0,0.00013698,2]
[346332502,1734898026794,-381.53189353,0.00013698,2]
[346332503,1734898026814,-500.0,0.00013698,2]
[346332504,1734898026836,-500.0,0.00013698,2]
[346332505,1734898026857,-500.0,0.00013698,2]
[346332506,1734898026879,-500.0,0.00013698,2]
[346332507,1734898026900,-500.0,0.00013698,2]
[346332508,1734898026920,-500.0,0.00013698,2]
[346332509,1734898026941,-709.72,0.00013698,2]
[346332510,1734898026962,-564.63,0.00013698,2]
[346332511,1734898026982,-500.0,0.00013698,2]
[346332512,1734898027002,-500.0,0.00013698,2]
[346332513,1734898027023,-500.0,0.00013698,2]
[346332514,1734898027044,-500.0,0.00013698,2]
[346332515,1734898027065,-500.0,0.00013698,2]
[346332516,1734898027086,-500.0,0.00013698,2]
[346332517,1734898027107,-596.88,0.00013698,2]
[346332518,1734898027128,-500.0,0.00013698,2]
[346332519,1734898027149,-500.0,0.00013698,2]
[346332520,1734898027170,-778.92,0.00013698,2]
[346332521,1734898027191,-500.0,0.00013698,2]
[346332522,1734898027212,-509.11,0.00013698,2]
[346332523,1734898027233,-510.08,0.00013698,2]
[346332524,1734898027255,-500.0,0.00013698,2]
[346332525,1734898027279,-500.0,0.00013698,2]
[346332526,1734898027300,-519.03,0.00013698,2]
[346332527,1734898027321,-500.0,0.00013698,2]
[346332528,1734898027343,-500.0,0.00013698,2]
[346332529,1734898027364,-500.0,0.00013698,2]
[346332530,1734898027385,-500.0,0.00013698,2]
[346332531,1734898027406,-500.0,0.00013698,2]
[346332532,1734898027427,-500.0,0.00013698,2]
[346332533,1734898027448,-500.0,0.00013698,2]
[346332534,1734898027469,-500.0,0.00013698,2]
[346332535,1734898027490,-500.0,0.00013698,2]
[346332536,1734898027518,-500.0,0.00013698,2]
[346332537,1734898027539,-500.0,0.00013698,2]
[346332538,1734898027561,-500.0,0.00013698,2]
[346332539,1734898027586,-508.19,0.00013698,2]
[346332540,1734898027607,-500.0,0.00013698,2]
[346332541,1734898027629,-590.6481119,0.00013698,2]
[346332542,1734898027650,-500.0,0.00013698,2]
[346332543,1734898027672,-731.33,0.00013698,2]
[346332544,1734898027693,-500.0,0.00013698,2]
[346332545,1734898027714,-500.0,0.00013698,2]
[346332546,1734898027735,-500.0,0.00013698,2]
[346332547,1734898027757,-500.0,0.00013698,2]
[346332548,1734898027780,-500.0,0.00013698,2]
[346332549,1734898027802,-500.0,0.00013698,2]
[346332550,1734898027824,-500.0,0.00013698,2]
[346332551,1734898027847,-517.23647771,0.00013698,2]
[346332552,1734898027868,-500.0,0.00013698,2]
[346332553,1734898027888,-383.8615723,0.00013698,2]
[346332554,1734898027910,-500.0,0.00013698,2]
[346332555,1734898027932,-500.0,0.00013698,2]
[346332556,1734898027953,-543.47,0.00013698,2]
[346332557,1734898027974,-500.0,0.00013698,2]
[346332558,1734898027994,-2274.25,0.00013698,2]
[346332559,1734898028016,-500.0,0.00013698,2]
[346332560,1734898028037,-500.0,0.00013698,2]
[346332561,1734898028058,-500.0,0.00013698,2]
[346332562,1734898028080,-500.0,0.00013698,2]
[346332563,1734898028101,-500.0,0.00013698,2]
[346332564,1734898028122,-1128.52,0.00013698,2]
[346332565,1734898028143,-500.0,0.00013698,2]
[346332566,1734898028165,-535.46393393,0.00013698,2]
[346332567,1734898028187,-500.0,0.00013698,2]
[346332568,1734898028208,-500.0,0.00013698,2]
[346332569,1734898028229,-500.0,0.00013698,2]
[346332570,1734898028250,-506.58146359,0.00013698,2]
[346332571,1734898028274,-687.9,0.00013698,2]
[346332572,1734898028297,-500.0,0.00013698,2]
[346332573,1734898028320,-500.0,0.00013698,2]
[346332574,1734898028342,-500.0,0.00013698,2]
[346332575,1734898028364,-500.0,0.00013698,2]
[346332576,1734898028386,-500.0,0.00013698,2]
[346332577,1734898028408,-500.0,0.00013698,2]
[346332578,1734898028430,-500.0,0.00013698,2]
[346332579,1734898028452,-500.0,0.00013698,2]
[346332580,1734898028474,-365.92614654,0.00013698,2]
[346332581,1734898028496,-500.0,0.00013698,2]
[346332582,1734898028522,-996.41,0.00013698,2]
[346332583,1734898028544,-729.09,0.00013698,2]
[346332584,1734898028566,-500.0,0.00013698,2]
[346332585,1734898028589,-500.0,0.00013698,2]
[346332586,1734898028612,-500.0,0.00013698,2]
[346332587,1734898028634,-552.02,0.00013698,2]
[346332588,1734898028656,-500.0,0.00013698,2]
[346332589,1734898028680,-896.76,0.00013698,2]
[346332590,1734898028702,-643.06,0.00013698,2]
[346332591,1734898028723,-622.12,0.00013698,2]
[346332592,1734898028745,-544.82,0.00013698,2]
[346332593,1734898028769,-500.0,0.00013698,2]
[346332594,1734898028791,-500.0,0.00013698,2]
[346332595,1734898028812,-500.0,0.00013698,2]
[346332596,1734898028835,-500.0,0.00013698,2]
[346332597,1734898028857,-514.67,0.00013698,2]
[346332598,1734898028878,-500.0,0.00013698,2]
[346332599,1734898028898,-500.0,0.00013698,2]
[346332600,1734898028919,-500.0,0.00013698,2]
[346332601,1734898028940,-1747.14,0.00013698,2]
[346332602,1734898028961,-64.61287688,0.00013698,2]
[346332603,1734898036142,-319.592,0.0001354,2]
[346332604,1734898036166,-435.38712312,0.00013698,2]
[346332605,1734898036187,-500.0,0.00013698,2]
[346332606,1734898036208,-638.51,0.00013698,2]
[346332607,1734898036231,-500.0,0.00013698,2]
[346332608,1734898036253,-500.0,0.00013698,2]
[346332609,1734898036277,-500.0,0.00013698,2]
[346332610,1734898036298,-500.0,0.00013698,2]
[346332611,1734898036320,-500.0,0.00013698,2]
[346332612,1734898036342,-500.0,0.00013698,2]
[346332613,1734898036363,-500.0,0.00013698,2]
[346332614,1734898036384,-500.0,0.00013698,2]
[346332615,1734898036405,-500.0,0.00013698,2]
[346332616,1734898036426,-500.0,0.00013698,2]
[346332617,1734898036447,-1384.02,0.00013698,2]
[346332618,1734898036469,-1146.78,0.00013698,2]
[346332619,1734898036490,-500.0,0.00013698,2]
[346332620,1734898036517,-204.29,0.00013698,2]
[346332621,1734898036542,-1829.53,0.00013698,2]
[346332622,1734898036564,-1063.84,0.00013698,2]
[346332623,1734898036585,-500.0,0.00013698,2]
[346332624,1734898036605,-620.23,0.00013698,2]
[346332625,1734898036626,-1154.81,0.00013698,2]
[346332626,1734898036646,-542.94,0.00013698,2]
[346332627,1734898036666,-1071.92,0.00013698,2]
[346332628,1734898036687,-3377.75,0.00013698,2]
[346332629,1734898036708,-500.0,0.00013698,2]
[346332630,1734898036729,-1785.14,0.00013698,2]
[346332631,1734898036750,-677.42,0.00013698,2]
[346332632,1734898036773,-500.0,0.00013698,2]
[346332633,1734898036794,-552.90547729,0.00013698,2]
[346332634,1734898036815,-1258.98,0.00013698,2]
[346332635,1734898036835,-500.0,0.00013698,2]
[346332636,1734898036856,-674.98,0.00013698,2]
[346332637,1734898036877,-500.0,0.00013698,2]
[346332638,1734898036898,-500.0,0.00013698,2]
[346332639,1734898036919,-1484.35,0.00013698,2]
[346332640,1734898036941,-581.24,0.00013698,2]
[346332641,1734898036963,-500.0,0.00013698,2]
[346332642,1734898036984,-500.0,0.00013698,2]
[346332643,1734898037007,-500.0,0.00013698,2]
[346332644,1734898037034,-915.03,0.00013698,2]
[346332645,1734898037056,-500.0,0.00013698,2]
[346332646,1734898037121,-500.0,0.00013698,2]
[346332647,1734898037142,-778.81,0.00013698,2]
[346332648,1734898037163,-1120.23,0.00013698,2]
[346332649,1734898037184,-3689.06,0.00013698,2]
[346332650,1734898037204,-500.0,0.00013698,2]
[346332651,1734898037225,-500.0,0.00013698,2]
[346332652,1734898037247,-25120.46,0.00013698,2]
[346332653,1734898037269,-645.28,0.00013698,2]
[346332654,1734898037290,-882.44,0.00013698,2]
[346332655,1734898037331,-500.0,0.00013698,2]
[346332656,1734898037353,-500.0,0.00013698,2]
[346332657,1734898037373,-966.84,0.00013698,2]
[346332658,1734898037393,-352.67391761,0.00013698,2]
[346332659,1734898037415,-1192.44,0.00013698,2]
[346332660,1734898037436,-500.0,0.00013698,2]
[346332661,1734898037456,-59054.86,0.00013698,2]
[346332662,1734898037479,-500.0,0.00013698,2]
[346332663,1734898037500,-671.49,0.00013698,2]
[346332664,1734898037525,-500.0,0.00013698,2]
[346332665,1734898037547,-999.5,0.00013698,2]
[346332666,1734898037568,-10254.56,0.00013698,2]
[346332667,1734898037590,-500.0,0.00013698,2]
[346332668,1734898037610,-500.0,0.00013698,2]
[346332669,1734898037630,-500.0,0.00013698,2]
[346332670,1734898037650,-500.0,0.00013698,2]
[346332671,1734898037670,-9426.79,0.00013698,2]
[346332672,1734898037690,-500.0,0.00013698,2]
[346332673,1734898037710,-1014.49,0.00013698,2]
[346332674,1734898037730,-500.0,0.00013698,2]
[346332675,1734898037750,-500.0,0.00013698,2]
[346332676,1734898037771,-1300.26,0.00013698,2]
[346332677,1734898037792,-18420.08,0.00013698,2]
[346332678,1734898037813,-500.0,0.00013698,2]
[346332679,1734898037832,-500.0,0.00013698,2]
[346332680,1734898037854,-500.0,0.00013698,2]
[346332681,1734898037874,-3065.5,0.00013698,2]
[346332682,1734898037894,-559.61,0.00013698,2]
[346332683,1734898037914,-962.09,0.00013698,2]
[346332684,1734898037933,-500.0,0.00013698,2]
[346332685,1734898037957,-500.0,0.00013698,2]
[346332686,1734898037977,-500.0,0.00013698,2]
[346332687,1734898037998,-4153.99,0.00013698,2]
[346332688,1734898038019,-500.0,0.00013698,2]
[346332689,1734898038041,-2050.24,0.00013698,2]
[346332690,1734898038063,-500.0,0.00013698,2]
[346332691,1734898038084,-500.0,0.00013698,2]
[346332692,1734898038104,-2695.0,0.00013698,2]
[346332693,1734898038126,-938.59,0.00013698,2]
[346332694,1734898038147,-2939.08,0.00013698,2]
[346332695,1734898038169,-500.0,0.00013698,2]
[346332696,1734898038190,-1840.32,0.00013698,2]
[346332697,1734898038215,-500.0,0.00013698,2]
[346332698,1734898038236,-500.0,0.00013698,2]
[346332699,1734898038259,-2644.46,0.00013698,2]
[346332700,1734898038283,-500.0,0.00013698,2]
[346332701,1734898038304,-619.23,0.00013698,2]
[346332702,1734898038327,-500.0,0.00013698,2]
[346332703,1734898038352,-6732.18,0.00013698,2]
[346332704,1734898038375,-536.02,0.00013698,2]
[346332705,1734898038397,-1286.39,0.00013698,2]
[346332706,1734898038417,-613.80306738,0.00013698,2]
[346332707,1734898038439,-500.0,0.00013698,2]
[346332708,1734898038461,-1768.71,0.00013698,2]
[346332709,1734898038483,-1288.4,0.00013698,2]
[346332710,1734898038508,-1426.45,0.00013698,2]
[346332711,1734898038533,-500.0,0.00013698,2]
[346332712,1734898038556,-759.11,0.00013698,2]
[346332713,1734898038577,-564.33,0.00013698,2]
[346332714,1734898038603,-617.89,0.00013698,2]
[346332715,1734898038627,-5580.72,0.00013698,2]
[346332716,1734898038648,-1742.18,0.00013698,2]
[346332717,1734898038670,-1543.78,0.00013698,2]
[346332718,1734898038696,-1308.11,0.00013698,2]
[346332719,1734898038718,-1114.83,0.00013698,2]
[346332720,1734898038739,-1403.22,0.00013698,2]
[346332721,1734898038760,-500.0,0.00013698,2]
[346332722,1734898038783,-4123.27,0.00013698,2]
[346332723,1734898038804,-500.0,0.00013698,2]
[346332724,1734898038826,-4963.03,0.00013698,2]
[346332725,1734898038847,-500.0,0.00013698,2]
[346332726,1734898038868,-500.0,0.00013698,2]
[346332727,1734898038889,-2533.46,0.00013698,2]
[346332728,1734898038910,-500.0,0.00013698,2]
[346332729,1734898038931,-500.0,0.00013698,2]
[346332730,1734898038953,-500.0,0.00013698,2]
[346332731,1734898038974,-2729.34,0.00013698,2]
[346332732,1734898038995,-1026.24,0.00013698,2]
[346332733,1734898039016,-1501.45,0.00013698,2]
[346332734,1734898039037,-784.13,0.00013698,2]
[346332735,1734898039058,-500.0,0.00013698,2]
[346332736,1734898039081,-638.78,0.00013698,2]
[346332737,1734898039101,-524.92,0.00013698,2]
[346332738,1734898039122,-500.0,0.00013698,2]
[346332739,1734898039143,-500.0,0.00013698,2]
[346332740,1734898039164,-2529.23,0.00013698,2]
[346332741,1734898039185,-2282.56,0.00013698,2]
[346332742,1734898039207,-930.06,0.00013698,2]
[346332743,1734898039228,-500.0,0.00013698,2]
[346332744,1734898039249,-500.0,0.00013698,2]
[346332745,1734898039270,-1197.3,0.00013698,2]
[346332746,1734898039293,-568.29,0.00013698,2]
[346332747,1734898039315,-659.14,0.00013698,2]
[346332748,1734898039338,-1232.72,0.00013698,2]
[346332749,1734898039360,-1396.28,0.00013698,2]
[346332750,1734898039382,-500.0,0.00013698,2]
[346332751,1734898039626,-500.0,0.00013698,2]
[346332752,1734898039647,-207.376928,0.00013699,2]
[346332753,1734898039668,-666.0,0.00013872,2]
[346332754,1734898039689,-700.0,0.000139,4]
[346332755,1734898039710,-151.157,0.00013935,2]
[346332756,1734898039731,-225.811,0.00013935,2]
[346332757,1734898039751,-150.0,0.00013935,2]
[346332758,1734898039772,-533.0,0.00013935,2]
[346332759,1734898039794,-2141.0,0.00013935,2]
[346332760,1734898039814,-2380.0,0.00013935,2]
[346332761,1734898039835,-153.0,0.00013952,2]
[346332762,1734898039855,-152.0,0.00013954,2]
[346332763,1734898039876,-500.0,0.00013972,2]
[346332764,1734898039896,-737.57,0.00013972,2]
[346332765,1734898039916,-509.08049431,0.00013972,2]
[346332766,1734898039936,-500.0,0.00013972,2]
[346332767,1734898039956,-500.0,0.00013972,2]
[346332768,1734898039976,-500.0,0.00013972,2]
[346332769,1734898039996,-500.0,0.00013972,2]
[346332770,1734898040016,-500.0,0.00013972,2]
[346332771,1734898040040,-500.0,0.00013972,2]
[346332772,1734898040062,-500.0,0.00013972,2]
[346332773,1734898040083,-500.0,0.00013972,2]
[346332774,1734898040104,-500.0,0.00013972,2]
[346332775,1734898040124,-500.0,0.00013972,2]
[346332776,1734898040145,-500.0,0.00013972,2]
[346332777,1734898040165,-500.0,0.00013972,2]
[346332778,1734898040186,-500.0,0.00013972,2]
[346332779,1734898040207,-709.72,0.00013972,2]
[346332780,1734898040227,-564.63,0.00013972,2]
[346332781,1734898040248,-500.0,0.00013972,2]
[346332782,1734898040272,-500.0,0.00013972,2]
[346332783,1734898040297,-500.0,0.00013972,2]
[346332784,1734898040318,-500.0,0.00013972,2]
[346332785,1734898040338,-596.88,0.00013972,2]
[346332786,1734898040360,-500.0,0.00013972,2]
[346332787,1734898040381,-778.92,0.00013972,2]
[346332788,1734898040402,-500.0,0.00013972,2]
[346332789,1734898040423,-509.11,0.00013972,2]
[346332790,1734898040445,-510.08,0.00013972,2]
[346332791,1734898040468,-500.0,0.00013972,2]
[346332792,1734898040489,-500.0,0.00013972,2]
[346332793,1734898040514,-519.03,0.00013972,2]
[346332794,1734898040536,-500.0,0.00013972,2]
[346332795,1734898040560,-500.0,0.00013972,2]
[346332796,1734898040582,-429.4195039,0.00013972,2]
[346332797,1734898040604,-500.0,0.00013972,2]
[346332798,1734898040627,-500.0,0.00013972,2]
[346332799,1734898040649,-500.0,0.00013972,2]
[346332800,1734898040671,-500.0,0.00013972,2]
[346332801,1734898040692,-506.55056488,0.00013972,2]
[346332802,1734898040713,-500.0,0.00013972,2]
[346332803,1734898040733,-508.19,0.00013972,2]
[346332804,1734898040754,-500.0,0.00013972,2]
[346332805,1734898040776,-500.0,0.00013972,2]
[346332806,1734898040798,-731.33,0.00013972,2]
[346332807,1734898040819,-500.0,0.00013972,2]
[346332808,1734898040840,-500.0,0.00013972,2]
[346332809,1734898040862,-500.0,0.00013972,2]
[346332810,1734898040885,-500.0,0.00013972,2]
[346332811,1734898040905,-500.0,0.00013972,2]
[346332812,1734898040928,-543.47,0.00013972,2]
[346332813,1734898040950,-500.0,0.00013972,2]
[346332814,1734898040972,-2274.25,0.00013972,2]
[346332815,1734898040993,-500.0,0.00013972,2]
[346332816,1734898041015,-500.0,0.00013972,2]
[346332817,1734898041037,-500.0,0.00013972,2]
[346332818,1734898041059,-500.0,0.00013972,2]
[346332819,1734898041080,-1128.52,0.00013972,2]
[346332820,1734898041101,-506.30857507,0.00013972,2]
[346332821,1734898041122,-500.0,0.00013972,2]
[346332822,1734898041144,-500.0,0.00013972,2]
[346332823,1734898041165,-500.0,0.00013972,2]
[346332824,1734898041187,-687.9,0.00013972,2]
[346332825,1734898041208,-500.0,0.00013972,2]
[346332826,1734898041228,-151.0,0.00013972,2]
[346332827,1734898041249,-500.0,0.00013972,2]
[346332828,1734898041272,-500.0,0.00013972,2]
[346332829,1734898041296,-504.75214087,0.00013972,2]
[346332830,1734898041317,-500.0,0.00013972,2]
[346332831,1734898041339,-500.0,0.00013972,2]
[346332832,1734898041359,-500.0,0.00013972,2]
[346332833,1734898041380,-151.0,0.00013972,2]
[346332834,1734898041401,-151.0,0.00013972,2]
[346332835,1734898041422,-500.0,0.00013972,2]
[346332836,1734898041443,-996.41,0.00013972,2]
[346332837,1734898041463,-729.09,0.00013972,2]
[346332838,1734898041484,-500.0,0.00013972,2]
[346332839,1734898041507,-500.0,0.00013972,2]
[346332840,1734898041529,-552.02,0.00013972,2]
[346332841,1734898041551,-500.0,0.00013972,2]
[346332842,1734898041573,-896.76,0.00013972,2]
[346332843,1734898041597,-643.06,0.00013972,2]
[346332844,1734898041619,-622.12,0.00013972,2]
[346332845,1734898041642,-544.82,0.00013972,2]
[346332846,1734898041663,-500.0,0.00013972,2]
[346332847,1734898041685,-151.0,0.00013972,2]
[346332848,1734898041706,-500.0,0.00013972,2]
[346332849,1734898041728,-500.0,0.00013972,2]
[346332850,1734898041750,-526.84496483,0.00013972,2]
[346332851,1734898041772,-514.67,0.00013972,2]
[346332852,1734898041794,-253.519019,0.00013972,2]
[346332853,1734898041815,-500.0,0.00013972,2]
[346332854,1734898041836,-500.0,0.00013972,2]
[346332855,1734898041857,-1747.14,0.00013972,2]
[346332856,1734898041878,-395.78000734,0.00013972,2]
[346332857,1734898041899,-500.0,0.00013972,2]
[346332858,1734898041919,-638.51,0.00013972,2]
[346332859,1734898041940,-160.97672148,0.00013972,2]
[346332860,1734898041962,-500.0,0.00013972,2]
[346332861,1734898041984,-500.0,0.00013972,2]
[346332862,1734898042005,-471.61963191,0.00013972,2]
[346332863,1734898042029,-500.0,0.00013972,2]
[346332864,1734898042050,-419.960024,0.00013972,2]
[346332865,1734898042071,-419.960024,0.00013972,2]
[346332866,1734898042092,-500.0,0.00013972,2]
[346332867,1734898042114,-500.0,0.00013972,2]
[346332868,1734898042137,-500.0,0.00013972,2]
[346332869,1734898042158,-1146.78,0.00013972,2]
[346332870,1734898042180,-1384.02,0.00013972,2]
[346332871,1734898042201,-500.0,0.00013972,2]
[346332872,1734898042223,-204.29,0.00013972,2]
[346332873,1734898042245,-1829.53,0.00013972,2]
[346332874,1734898042268,-1063.84,0.00013972,2]
[346332875,1734898042295,-151.0,0.00013972,2]
[346332876,1734898042318,-500.0,0.00013972,2]
[346332877,1734898042339,-620.23,0.00013972,2]
[346332878,1734898042360,-151.0,0.00013972,2]
[346332879,1734898042382,-1154.81,0.00013972,2]
[346332880,1734898042405,-542.94,0.00013972,2]
[346332881,1734898042427,-1071.92,0.00013972,2]
[346332882,1734898042449,-3377.75,0.00013972,2]
[346332883,1734898042472,-500.0,0.00013972,2]
[346332884,1734898042494,-151.0,0.00013972,2]
[346332885,1734898042519,-1785.14,0.00013972,2]
[346332886,1734898042543,-677.42,0.00013972,2]
[346332887,1734898042565,-500.0,0.00013972,2]
[346332888,1734898042588,-1258.98,0.00013972,2]
[346332889,1734898042609,-602.80796776,0.00013972,2]
[346332890,1734898042629,-674.98,0.00013972,2]
[346332891,1734898042650,-500.0,0.00013972,2]
[346332892,1734898042673,-500.0,0.00013972,2]
[346332893,1734898042694,-1484.35,0.00013972,2]
[346332894,1734898042716,-581.24,0.00013972,2]
[346332895,1734898042737,-500.0,0.00013972,2]
[346332896,1734898042758,-500.0,0.00013972,2]
[346332897,1734898042783,-500.0,0.00013972,2]
[346332898,1734898042805,-915.03,0.00013972,2]
[346332899,1734898042827,-388.96316393,0.00013972,2]
[346332900,1734898042848,-500.0,0.00013972,2]
[346332901,1734898042870,-778.81,0.00013972,2]
[346332902,1734898042891,-1120.23,0.00013972,2]
[346332903,1734898042913,-3689.06,0.00013972,2]
[346332904,1734898042933,-500.0,0.00013972,2]
[346332905,1734898042957,-500.0,0.00013972,2]
[346332906,1734898042978,-25120.46,0.00013972,2]
[346332907,1734898042999,-645.28,0.00013972,2]
[346332908,1734898043019,-882.44,0.00013972,2]
[346332909,1734898043042,-500.0,0.00013972,2]
[346332910,1734898043064,-500.0,0.00013972,2]
[346332911,1734898043086,-966.84,0.00013972,2]
[346332912,1734898043107,-1192.44,0.00013972,2]
[346332913,1734898043129,-500.0,0.00013972,2]
[346332914,1734898043150,-59054.86,0.00013972,2]
[346332915,1734898043171,-500.0,0.00013972,2]
[346332916,1734898043192,-671.49,0.00013972,2]
[346332917,1734898043212,-500.0,0.00013972,2]
[346332918,1734898043233,-151.0,0.00013972,2]
[346332919,1734898043255,-999.5,0.00013972,2]
[346332920,1734898043278,-10254.56,0.00013972,2]
[346332921,1734898043305,-500.0,0.00013972,2]
[346332922,1734898043326,-500.0,0.00013972,2]
[346332923,1734898043348,-151.0,0.00013972,2]
[346332924,1734898043370,-151.0,0.00013972,2]
[346332925,1734898043563,-500.0,0.00013972,2]
[346332926,1734898043587,-9426.79,0.00013972,2]
[346332927,1734898043609,-500.0,0.00013972,2]
[346332928,1734898043631,-1014.49,0.00013972,2]
[346332929,1734898043652,-151.0,0.00013972,2]
[346332930,1734898043684,-500.0,0.00013972,2]
[346332931,1734898043706,-500.0,0.00013972,2]
[346332932,1734898043728,-1300.26,0.00013972,2]
[346332933,1734898043752,-18420.08,0.00013972,2]
[346332934,1734898043779,-500.0,0.00013972,2]
[346332935,1734898043812,-500.0,0.00013972,2]
[346332936,1734898043834,-500.0,0.00013972,2]
[346332937,1734898043856,-3065.5,0.00013972,2]
[346332938,1734898043878,-559.61,0.00013972,2]
[346332939,1734898043899,-962.09,0.00013972,2]
[346332940,1734898043920,-500.0,0.00013972,2]
[346332941,1734898043943,-500.0,0.00013972,2]
[346332942,1734898043965,-500.0,0.00013972,2]
[346332943,1734898043987,-4153.99,0.00013972,2]
[346332944,1734898044007,-500.0,0.00013972,2]
[346332945,1734898044031,-2050.24,0.00013972,2]
[346332946,1734898044052,-500.0,0.00013972,2]
[346332947,1734898044073,-500.0,0.00013972,2]
[346332948,1734898044095,-2695.0,0.00013972,2]
[346332949,1734898044117,-938.59,0.00013972,2]
[346332950,1734898044140,-2939.08,0.00013972,2]
[346332951,1734898044162,-500.0,0.00013972,2]
[346332952,1734898044183,-1840.32,0.00013972,2]
[346332953,1734898044204,-206.090644,0.00013972,2]
[346332954,1734898044225,-500.0,0.00013972,2]
[346332955,1734898044246,-500.0,0.00013972,2]
[346332956,1734898044271,-2644.46,0.00013972,2]
[346332957,1734898044294,-206.090644,0.00013972,2]
[346332958,1734898044316,-500.0,0.00013972,2]
[346332959,1734898044337,-151.0,0.00013972,2]
[346332960,1734898044359,-619.23,0.00013972,2]
[346332961,1734898044381,-500.0,0.00013972,2]
[346332962,1734898044402,-6732.18,0.00013972,2]
[346332963,1734898044424,-536.02,0.00013972,2]